[Event "V Copa Marcel Duchamp 2022"]
[Site "Montevideo"]
[Date "2022.02.19"]
[Round "9.4"]
[White "Labollita, Martin"]
[Black "Morovic Fernandez, Ivan"]
[Result "1/2-1/2"]
[ECO "D00"]
[WhiteElo "2388"]
[BlackElo "2498"]
[Annotator "ChessBase"]
[PlyCount "67"]
[EventDate "2022.02.12"]
[EventCountry "URU"]
[SourceTitle "playchess.com"]
[Source "ChessBase"]
[SourceQuality "1"]
[TimeControl "5400+30"]

1. d4 {[%emt 0:00:48]} d5 {[%emt 0:01:03]} 2. Bf4 {[%emt 0:00:08]} Nf6 {[%emt 0:00:23]} 3. e3 {[%emt 0:00:11]} e6 {[%emt 0:02:52]} 4. Nd2 {[%emt 0:01:03]} Bd6 {[%emt 0:01:12]} 5. Bg3 {[%emt 0:00:17]} O-O {[%emt 0:00:26]} 6. Ngf3 {[%emt 0:01:00]} c5 {[%emt 0:01:16]} 7. c3 {[%emt 0:00:25]} Qc7 {[%emt 0:01:23]} 8. c4 {[%emt 0:02:32]} cxd4 {[%emt 0:11:51]} 9. Nxd4 {[%emt 0:02:27]} Bxg3 {[%emt 0:01:08]} 10. hxg3 {[%emt 0:00:27]} Nc6 {[%emt 0:00:56]} 11. Nxc6 {[%emt 0:05:48]} Qxc6 {[%emt 0:01:45]} 12. Be2 {[%emt 0:20:59]} Rd8 {[%emt 0:04:04]} 13. cxd5 {[%emt 0:08:36]} Qxd5 {[%emt 0:12:03]} 14. Nc4 {[%emt 0:00:25]} Bd7 {[%emt 0:09:36]} 15. Qxd5 {[%emt 0:04:40]} exd5 {[%emt 0:02:17]} 16. Ne5 {[%emt 0:13:48]} d4 {[%emt 0:07:11]} 17. exd4 {[%emt 0:06:25]} Be6 {[%emt 0:01:42]} 18. O-O {[%emt 0:02:10]} Rxd4 {[%emt 0:00:23]} 19. Bf3 {[%emt 0:00:14]} Rd2 {[%emt 0:04:21]} 20. b3 {[%emt 0:01:38]} Bd5 {[%emt 0:14:20]} 21. Rfd1 {[%emt 0:02:17]} Rxd1+ {[%emt 0:00:09]} 22. Rxd1 {[%emt 0:00:01]} Bxf3 {[%emt 0:01:35]} 23. gxf3 {[%emt 0:00:03]} Rc8 {[%emt 0:02:13]} 24. Ng4 {[%emt 0:02:11]} Kf8 {[%emt 0:13:40]} 25. Nxf6 {[%emt 0:02:32]} gxf6 {[%emt 0:00:03]} 26. Rd7 {[%emt 0:00:04]} Rc2 {[%emt 0:00:39]} 27. a4 {[%emt 0:03:47]} b6 {[%emt 0:00:15]} 28. Rxa7 {[%emt 0:01:24]} Rb2 {[%emt 0:00:33]} 29. Rb7 {[%emt 0:01:16]} Rxb3 {[%emt 0:00:04]} 30. a5 {[%emt 0:00:34]} b5 {[%emt 0:00:44]} 31. a6 {[%emt 0:05:38]} Kg7 {[%emt 0:01:06]} 32. a7 {[%emt 0:00:39]} Ra3 {[%emt 0:00:04]} 33. Kf1 {[%emt 0:00:23]} Ra2 {[%emt 0:01:00]} 34. Ke1 {[%emt 0:03:54]} 1/2-1/2

[Event "V Copa Marcel Duchamp 2022"]
[Site "Montevideo"]
[Date "2022.02.19"]
[Round "9.5"]
[White "Santiago, Yago De Moura"]
[Black "Roselli Mailhe, Bernardo"]
[Result "1-0"]
[ECO "D38"]
[WhiteElo "2494"]
[BlackElo "2426"]
[Annotator "ChessBase"]
[PlyCount "121"]
[EventDate "2022.02.12"]
[EventCountry "URU"]
[SourceTitle "playchess.com"]
[Source "ChessBase"]
[SourceQuality "1"]
[TimeControl "5400+30"]

1. d4 {[%emt 0:00:53]} Nf6 {[%emt 0:01:15]} 2. c4 {[%emt 0:00:11]} e6 {[%emt 0:00:05]} 3. Nc3 {[%emt 0:00:26]} d5 {[%emt 0:00:06]} 4. Nf3 {[%emt 0:01:35]} Bb4 {[%emt 0:00:29]} 5. Qa4+ {[%emt 0:01:22]} Nc6 {[%emt 0:00:08]} 6. a3 {[%emt 0:00:04]} Bxc3+ {[%emt 0:02:19]} 7. bxc3 {[%emt 0:00:08]} Ne4 {[%emt 0:01:54]} 8. Qc2 {[%emt 0:00:50]} Na5 {[%emt 0:05:02]} 9. e3 {[%emt 0:04:40]} O-O {[%emt 0:06:38]} 10. Bd3 {[%emt 0:10:25]} b6 {[%emt 0:09:11]} 11. cxd5 {[%emt 0:06:09]} exd5 {[%emt 0:00:12]} 12. O-O {[%emt 0:00:08]} Re8 {[%emt 0:13:09]} 13. Nd2 {[%emt 0:16:36]} Nf6 {[%emt 0:08:14]} 14. e4 {[%emt 0:03:08]} dxe4 {[%emt 0:00:27]} 15. Nxe4 {[%emt 0:00:10]} h6 {[%emt 0:00:04]} 16. Nxf6+ {[%emt 0:31:59]} Qxf6 {[%emt 0:00:06]} 17. Bb2 {[%emt 0:00:05]} c5 {[%emt 0:17:48]} 18. dxc5 {[%emt 0:01:56]} Bb7 {[%emt 0:07:54]} 19. cxb6 {[%emt 0:01:09]} Qc6 {[%emt 0:01:24]} 20. f3 {[%emt 0:00:30]} Nc4 {[%emt 0:02:14]} 21. Bc1 {[%emt 0:00:24]} axb6 {[%emt 0:01:22]} 22. Kh1 {[%emt 0:02:32]} Qc5 {[%emt 0:01:30]} 23. a4 {[%emt 0:07:25]} b5 {[%emt 0:03:24]} 24. Bf4 {[%emt 0:01:56]} g5 {[%emt 0:00:22]} 25. Bc1 {[%emt 0:02:12]} Bc6 {[%emt 0:06:16]} 26. a5 {[%emt 0:00:26]} Rxa5 {[%emt 0:01:01]} 27. Rxa5 {[%emt 0:00:11]} Nxa5 {[%emt 0:00:06]} 28. Bh7+ {[%emt 0:01:19]} Kg7 {[%emt 0:01:13]} 29. c4 {[%emt 0:01:03]} Qxc4 {[%emt 0:02:02]} 30. Bb2+ {[%emt 0:00:15]} Kf8 {[%emt 0:00:30]} 31. Qd1 {[%emt 0:00:36]} Qd5 {[%emt 0:02:04]} 32. Qa1 {[%emt 0:00:12]} Nc4 {[%emt 0:01:47]} 33. Bg7+ {[%emt 0:00:40]} Ke7 {[%emt 0:00:00]} 34. Be4 {[%emt 0:02:34]} Qe6 {[%emt 0:02:05]} 35. Re1 {[%emt 0:00:59]} Kd8 {[%emt 0:00:58]} 36. Bf6+ {[%emt 0:01:39]} Kc8 {[%emt 0:01:23]} 37. Qa6+ {[%emt 0:00:07]} Kc7 {[%emt 0:01:32]} 38. Qa7+ {[%emt 0:01:03]} Kc8 {[%emt 0:00:08]} 39. Qa6+ {[%emt 0:01:20]} Kc7 {[%emt 0:00:05]} 40. Qa7+ {[%emt 0:00:03]} Kc8 {[%emt 0:00:03]} 41. Bd4 {[%emt 0:00:41]} Bxe4 {[%emt 0:00:21]} 42. fxe4 {[%emt 0:00:16]} Qc6 {[%emt 0:01:31]} 43. Qxf7 {[%emt 0:00:28]} Nd6 {[%emt 0:01:08]} 44. Qf6 {[%emt 0:00:30]} Kb7 {[%emt 0:00:09]} 45. e5 {[%emt 0:00:18]} Nc8 {[%emt 0:00:33]} 46. e6 {[%emt 0:00:22]} Qd5 {[%emt 0:00:35]} 47. Bg1 {[%emt 0:01:04]} h5 {[%emt 0:00:11]} 48. Qf7+ {[%emt 0:00:38]} Re7 {[%emt 0:00:06]} 49. Qxh5 {[%emt 0:00:14]} Nd6 50. Qe2 {[%emt 0:00:56]} Nc4 {[%emt 0:01:23]} 51. Qf2 {[%emt 0:00:16]} Kc6 {[%emt 0:00:37]} 52. Qf8 {[%emt 0:00:33]} Qd6 {[%emt 0:02:32]} 53. Qa8+ {[%emt 0:00:39]} Kc7 {[%emt 0:00:02]} 54. Qa7+ {[%emt 0:00:30]} Kc8 {[%emt 0:00:21]} 55. Qa8+ {[%emt 0:00:02]} Kc7 {[%emt 0:00:54]} 56. Ra1 {[%emt 0:00:15]} Qb4 {[%emt 0:00:28]} 57. Ra6 {[%emt 0:00:38]} Ne5 {[%emt 0:00:06]} 58. Qa7+ {[%emt 0:00:20]} Kc8 {[%emt 0:00:00]} 59. Qb6 {[%emt 0:00:31]} Qe4 {[%emt 0:00:01]} 60. Qc5+ {[%emt 0:00:18]} Kd8 {[%emt 0:01:17]} 61. Rd6+ {[%emt 0:00:15]} 1-0

[Event "V Copa Marcel Duchamp 2022"]
[Site "Montevideo"]
[Date "2022.02.19"]
[Round "9.7"]
[White "Perdomo, Leandro"]
[Black "Coppola, Claudio"]
[Result "1/2-1/2"]
[ECO "A58"]
[WhiteElo "2447"]
[BlackElo "2285"]
[Annotator "ChessBase"]
[PlyCount "73"]
[EventDate "2022.02.12"]
[EventCountry "URU"]
[SourceTitle "playchess.com"]
[Source "ChessBase"]
[SourceQuality "1"]
[TimeControl "5400+30"]

1. d4 {[%emt 0:00:02]} Nf6 {[%emt 0:17:36]} 2. c4 {[%emt 0:00:03]} c5 {[%emt 0:00:04]} 3. d5 {[%emt 0:00:04]} b5 {[%emt 0:00:02]} 4. cxb5 {[%emt 0:00:20]} a6 {[%emt 0:00:02]} 5. bxa6 {[%emt 0:00:06]} g6 {[%emt 0:00:04]} 6. Nc3 {[%emt 0:00:19]} Bg7 {[%emt 0:00:05]} 7. e4 {[%emt 0:01:00]} O-O {[%emt 0:00:05]} 8. Nf3 {[%emt 0:00:49]} Qa5 {[%emt 0:00:03]} 9. Bd2 {[%emt 0:00:10]} Bxa6 {[%emt 0:00:09]} 10. Be2 {[%emt 0:00:42]} Bxe2 {[%emt 0:00:11]} 11. Qxe2 {[%emt 0:00:05]} Qa6 {[%emt 0:00:02]} 12. a4 {[%emt 0:16:52]} Qxe2+ {[%emt 0:04:02]} 13. Kxe2 {[%emt 0:00:02]} Na6 {[%emt 0:00:45]} 14. Bg5 {[%emt 0:29:01]} Rfb8 {[%emt 0:02:53]} 15. Rab1 {[%emt 0:00:06]} Rb4 {[%emt 0:09:42]} 16. Nd2 {[%emt 0:01:12]} h6 {[%emt 0:00:17]} 17. Bxf6 {[%emt 0:13:27]} Bxf6 {[%emt 0:00:29]} 18. Rhc1 {[%emt 0:00:02]} Rab8 {[%emt 0:00:32]} 19. b3 {[%emt 0:02:10]} Bg5 {[%emt 0:00:39]} 20. f3 {[%emt 0:03:38]} f5 {[%emt 0:04:28]} 21. exf5 {[%emt 0:03:24]} gxf5 {[%emt 0:00:23]} 22. Nb5 {[%emt 0:00:03]} Rh4 {[%emt 0:08:38]} 23. h3 {[%emt 0:02:16]} d6 {[%emt 0:00:51]} 24. Rd1 {[%emt 0:04:07]} Nb4 {[%emt 0:00:01]} 25. Nc4 {[%emt 0:00:12]} Kf7 {[%emt 0:02:35]} 26. Kf2 {[%emt 0:04:16]} Bf6 {[%emt 0:02:23]} 27. Na5 {[%emt 0:11:21]} Rb6 {[%emt 0:05:18]} 28. Rbc1 {[%emt 0:01:43]} Ra6 {[%emt 0:03:15]} 29. Nc4 {[%emt 0:00:17]} f4 {[%emt 0:01:08]} 30. Rd2 {[%emt 0:01:27]} Rh5 {[%emt 0:02:41]} 31. Rcd1 {[%emt 0:00:01]} Rg5 {[%emt 0:03:08]} 32. Kf1 {[%emt 0:00:26]} Rf5 {[%emt 0:01:45]} 33. Nca3 {[%emt 0:02:12]} Re5 {[%emt 0:00:50]} 34. Nc4 {[%emt 0:00:32]} Rf5 {[%emt 0:01:01]} 35. Nca3 {[%emt 0:01:55]} Re5 {[%emt 0:00:12]} 36. Nc7 {[%emt 0:02:37]} Ra7 {[%emt 0:00:52]} 37. Ncb5 {[%emt 0:00:24]} 1/2-1/2

[Event "V Copa Marcel Duchamp 2022"]
[Site "Montevideo"]
[Date "2022.02.19"]
[Round "9.8"]
[White "Valerga, Diego"]
[Black "Spata, German"]
[Result "1/2-1/2"]
[ECO "D52"]
[WhiteElo "2431"]
[BlackElo "2300"]
[Annotator "ChessBase"]
[PlyCount "37"]
[EventDate "2022.02.12"]
[EventCountry "URU"]
[SourceTitle "playchess.com"]
[Source "ChessBase"]
[SourceQuality "1"]
[TimeControl "5400+30"]

1. d4 d5 {[%emt 0:01:01]} 2. c4 {[%emt 0:00:20]} c6 {[%emt 0:00:34]} 3. Nf3 {[%emt 0:00:09]} Nf6 {[%emt 0:00:06]} 4. Nc3 {[%emt 0:00:22]} e6 {[%emt 0:02:16]} 5. Bg5 {[%emt 0:01:46]} Nbd7 {[%emt 0:01:29]} 6. e3 {[%emt 0:01:37]} Qa5 {[%emt 0:01:06]} 7. cxd5 {[%emt 0:00:29]} Nxd5 {[%emt 0:00:07]} 8. Rc1 {[%emt 0:01:54]} Nxc3 {[%emt 0:00:06]} 9. bxc3 {[%emt 0:00:05]} Ba3 {[%emt 0:00:06]} 10. Rc2 {[%emt 0:00:06]} b6 {[%emt 0:00:03]} 11. Be2 {[%emt 0:00:31]} Ba6 {[%emt 0:00:04]} 12. O-O {[%emt 0:00:09]} Bxe2 {[%emt 0:00:07]} 13. Rxe2 {[%emt 0:01:25]} O-O {[%emt 0:00:19]} 14. e4 {[%emt 0:00:39]} Rfe8 {[%emt 0:00:17]} 15. Re3 {[%emt 0:09:27]} Bf8 {[%emt 0:00:20]} 16. Qb1 {[%emt 0:01:21]} c5 {[%emt 0:03:06]} 17. Rd1 {[%emt 0:03:04]} cxd4 {[%emt 0:00:22]} 18. cxd4 {[%emt 0:00:08]} Rac8 {[%emt 0:05:19]} 19. h3 {[%emt 0:05:57]} 1/2-1/2

[Event "V Copa Marcel Duchamp 2022"]
[Site "Montevideo"]
[Date "2022.02.19"]
[Round "9.9"]
[White "Carbone, Diego"]
[Black "Hoffman, Alejandro"]
[Result "1/2-1/2"]
[ECO "E06"]
[WhiteElo "2272"]
[BlackElo "2403"]
[Annotator "ChessBase"]
[PlyCount "25"]
[EventDate "2022.02.12"]
[EventCountry "URU"]
[SourceTitle "playchess.com"]
[Source "ChessBase"]
[SourceQuality "1"]
[TimeControl "5400+30"]

1. d4 {[%emt 0:02:23]} Nf6 {[%emt 0:00:06]} 2. c4 {[%emt 0:00:56]} e6 {[%emt 0:00:08]} 3. g3 {[%emt 0:00:42]} d5 {[%emt 0:00:12]} 4. Nf3 {[%emt 0:00:22]} Be7 {[%emt 0:00:08]} 5. Bg2 {[%emt 0:00:09]} O-O {[%emt 0:00:09]} 6. O-O {[%emt 0:00:17]} c6 {[%emt 0:00:07]} 7. Qc2 {[%emt 0:01:06]} b6 {[%emt 0:00:29]} 8. Nbd2 {[%emt 0:01:06]} Bb7 {[%emt 0:00:31]} 9. e4 {[%emt 0:01:02]} Na6 {[%emt 0:00:55]} 10. a3 {[%emt 0:11:40]} c5 {[%emt 0:01:43]} 11. exd5 {[%emt 0:08:14]} exd5 {[%emt 0:00:21]} 12. dxc5 {[%emt 0:00:38]} Nxc5 {[%emt 0:01:41]} 13. b4 {[%emt 0:01:11]} 1/2-1/2

[Event "V Copa Marcel Duchamp 2022"]
[Site "Montevideo"]
[Date "2022.02.19"]
[Round "9.10"]
[White "Granara Barreto, Sebastian"]
[Black "Coro, Lucas"]
[Result "1/2-1/2"]
[ECO "B13"]
[WhiteElo "2131"]
[BlackElo "2355"]
[Annotator "ChessBase"]
[PlyCount "95"]
[EventDate "2022.02.12"]
[EventCountry "URU"]
[SourceTitle "playchess.com"]
[Source "ChessBase"]
[SourceQuality "1"]
[TimeControl "5400+30"]

1. e4 {[%emt 0:01:19]} c6 {[%emt 0:01:37]} 2. d4 {[%emt 0:04:02]} d5 {[%emt 0:01:02]} 3. exd5 {[%emt 0:00:05]} cxd5 {[%emt 0:00:27]} 4. Bd3 {[%emt 0:01:06]} Nc6 {[%emt 0:00:38]} 5. c3 {[%emt 0:00:12]} Nf6 {[%emt 0:01:55]} 6. Bf4 {[%emt 0:01:34]} Bg4 {[%emt 0:00:59]} 7. Nf3 {[%emt 0:06:37]} e6 {[%emt 0:01:39]} 8. Nbd2 {[%emt 0:00:38]} Bd6 {[%emt 0:01:52]} 9. Bg3 {[%emt 0:04:25]} O-O {[%emt 0:00:51]} 10. O-O {[%emt 0:01:05]} Bxg3 {[%emt 0:03:34]} 11. hxg3 {[%emt 0:02:32]} Rb8 {[%emt 0:01:39]} 12. Qc2 {[%emt 0:01:04]} Ne7 {[%emt 0:02:40]} 13. Ne5 {[%emt 0:02:07]} Bf5 {[%emt 0:00:54]} 14. a4 {[%emt 0:03:03]} Qc7 {[%emt 0:06:45]} 15. Rfc1 {[%emt 0:06:04]} Rfc8 {[%emt 0:03:15]} 16. Qd1 {[%emt 0:01:36]} Nd7 {[%emt 0:03:18]} 17. Nxd7 {[%emt 0:05:37]} Qxd7 {[%emt 0:00:09]} 18. Nf3 {[%emt 0:00:06]} Bxd3 {[%emt 0:04:19]} 19. Qxd3 {[%emt 0:00:06]} Nc6 {[%emt 0:02:20]} 20. Re1 {[%emt 0:03:33]} a6 {[%emt 0:05:00]} 21. Re2 {[%emt 0:03:31]} Qc7 {[%emt 0:03:14]} 22. Rae1 {[%emt 0:03:10]} b5 {[%emt 0:02:01]} 23. axb5 {[%emt 0:04:42]} axb5 {[%emt 0:00:08]} 24. Ng5 {[%emt 0:00:06]} g6 {[%emt 0:02:37]} 25. Qf3 {[%emt 0:02:51]} Qe7 {[%emt 0:06:35]} 26. Qf4 {[%emt 0:02:03]} Kg7 {[%emt 0:09:54]} 27. Qg4 {[%emt 0:15:27]} Qf6 {[%emt 0:06:31]} 28. Re3 {[%emt 0:04:18]} h6 {[%emt 0:01:23]} 29. Nh3 {[%emt 0:02:36]} b4 {[%emt 0:04:51]} 30. Rf3 {[%emt 0:01:00]} h5 {[%emt 0:00:44]} 31. Qg5 {[%emt 0:04:25]} Qxg5 {[%emt 0:00:06]} 32. Nxg5 {[%emt 0:00:02]} Nd8 {[%emt 0:00:11]} 33. Ra1 {[%emt 0:01:38]} Rc7 {[%emt 0:03:14]} 34. Re3 {[%emt 0:06:35]} bxc3 {[%emt 0:00:04]} 35. bxc3 {[%emt 0:00:02]} Rbc8 {[%emt 0:01:14]} 36. Ra3 {[%emt 0:00:58]} Nb7 {[%emt 0:02:49]} 37. Ra6 {[%emt 0:06:34]} Rxc3 {[%emt 0:01:24]} 38. Nxe6+ {[%emt 0:00:06]} fxe6 {[%emt 0:01:16]} 39. Rexe6 {[%emt 0:00:06]} Rb3 {[%emt 0:04:55]} 40. Rxg6+ {[%emt 0:00:31]} Kf7 {[%emt 0:00:07]} 41. Rgb6 {[%emt 0:02:38]} Rcc3 {[%emt 0:03:10]} 42. Kh2 {[%emt 0:00:39]} Ke7 {[%emt 0:03:39]} 43. Rh6 {[%emt 0:00:16]} Kf7 {[%emt 0:02:20]} 44. Rxh5 {[%emt 0:00:40]} Nd8 {[%emt 0:01:06]} 45. Rxd5 {[%emt 0:00:25]} Nc6 {[%emt 0:00:16]} 46. Rc5 {[%emt 0:00:43]} Nxd4 {[%emt 0:00:13]} 47. Rxc3 {[%emt 0:00:06]} Rxc3 {[%emt 0:00:04]} 48. g4 1/2-1/2

[Event "V Copa Marcel Duchamp 2022"]
[Site "Montevideo"]
[Date "2022.02.19"]
[Round "9.11"]
[White "Menna Barreto, Felipe Kubiaki"]
[Black "Vazquez, Facundo"]
[Result "1/2-1/2"]
[ECO "A46"]
[WhiteElo "2351"]
[BlackElo "2319"]
[Annotator "ChessBase"]
[PlyCount "50"]
[EventDate "2022.02.12"]
[EventCountry "URU"]
[SourceTitle "playchess.com"]
[Source "ChessBase"]
[SourceQuality "1"]
[TimeControl "5400+30"]

1. d4 {[%emt 0:04:38]} Nf6 {[%emt 0:00:09]} 2. Nf3 {[%emt 0:00:08]} e6 {[%emt 0:00:07]} 3. Bf4 {[%emt 0:00:42]} c5 {[%emt 0:00:09]} 4. e3 {[%emt 0:00:18]} Qb6 {[%emt 0:00:08]} 5. Nc3 {[%emt 0:02:42]} a6 {[%emt 0:00:18]} 6. Na4 {[%emt 0:06:43]} Qa5+ {[%emt 0:00:03]} 7. c3 {[%emt 0:00:09]} c4 {[%emt 0:00:05]} 8. Nd2 {[%emt 0:09:07]} d5 {[%emt 0:00:18]} 9. b4 {[%emt 0:04:39]} Qd8 {[%emt 0:00:24]} 10. Be2 {[%emt 0:09:20]} Bd7 {[%emt 0:04:56]} 11. Rb1 {[%emt 0:00:55]} Bc6 {[%emt 0:03:39]} 12. O-O {[%emt 0:03:25]} Nbd7 {[%emt 0:04:25]} 13. Qc2 {[%emt 0:01:25]} Be7 {[%emt 0:02:56]} 14. Nc5 {[%emt 0:01:17]} O-O {[%emt 0:09:14]} 15. Nf3 {[%emt 0:04:20]} Nh5 {[%emt 0:10:10]} 16. Nxd7 {[%emt 0:02:20]} Bxd7 {[%emt 0:01:05]} 17. Ne5 {[%emt 0:12:43]} Nxf4 {[%emt 0:02:35]} 18. exf4 {[%emt 0:00:01]} Be8 {[%emt 0:05:22]} 19. Bg4 {[%emt 0:00:07]} Bd6 {[%emt 0:04:59]} 20. g3 {[%emt 0:01:39]} f5 {[%emt 0:02:11]} 21. Bh3 {[%emt 0:10:15]} Bxe5 {[%emt 0:00:43]} 22. fxe5 {[%emt 0:00:33]} Qe7 {[%emt 0:01:39]} 23. f4 {[%emt 0:01:20]} b6 {[%emt 0:02:01]} 24. a4 {[%emt 0:00:54]} Bh5 {[%emt 0:00:40]} 25. a5 {[%emt 0:05:53]} b5 {[%emt 0:00:47]} 1/2-1/2

[Event "V Copa Marcel Duchamp 2022"]
[Site "Montevideo"]
[Date "2022.02.19"]
[Round "9.12"]
[White "Carvalho, Guillermo"]
[Black "Vitoux, Colomban"]
[Result "0-1"]
[ECO "A11"]
[WhiteElo "2171"]
[BlackElo "2372"]
[Annotator "NA"]
[PlyCount "156"]
[EventDate "2022.02.12"]
[EventCountry "URU"]
[SourceTitle "playchess.com"]
[Source "ChessBase"]
[SourceQuality "1"]
[TimeControl "5400+30"]

1. c4 {[%emt 0:00:07]} c6 {[%emt 0:08:31]} 2. e4 {[%emt 0:00:18]} e5 {[%emt 0:00:27]} 3. d4 {[%emt 0:02:03]} d6 {[%emt 0:01:22]} 4. Nc3 {[%emt 0:02:30]} Nf6 {[%emt 0:01:31]} 5. Nf3 {[%emt 0:00:34]} Bg4 {[%emt 0:01:36]} 6. Be2 {[%emt 0:03:04]} Qc7 {[%emt 0:03:12]} 7. O-O {[%emt 0:03:28]} Be7 {[%emt 0:01:08]} 8. Be3 {[%emt 0:00:44]} O-O {[%emt 0:09:05]} 9. Ne1 {[%emt 0:03:18]} Bxe2 {[%emt 0:06:31]} 10. Qxe2 {[%emt 0:01:26]} Nbd7 {[%emt 0:01:34]} 11. Nd3 {[%emt 0:05:29]} Rfe8 {[%emt 0:04:07]} 12. d5 {[%emt 0:00:58]} a6 {[%emt 0:03:16]} 13. Rac1 {[%emt 0:00:58]} Qb8 {[%emt 0:05:34]} 14. f3 {[%emt 0:03:40]} Rc8 {[%emt 0:04:08]} 15. b3 {[%emt 0:07:03]} Bd8 {[%emt 0:04:41]} 16. Qf2 {[%emt 0:02:44]} c5 {[%emt 0:04:43]} ({Black should play} 16... Ba5 $14) 17. g4 {[%emt 0:00:56]} Ba5 {[%emt 0:07:38] [#]} 18. Ne2 $1 {[%emt 0:01:03]} Rf8 {[%emt 0:06:16]} 19. Ng3 {[%emt 0:01:31]} Kh8 {[%emt 0:02:34]} 20. Qg2 {[%emt 0:04:45]} Ng8 {[%emt 0:04:55]} 21. Kh1 {[%emt 0:01:31]} (21. h4 $18) 21... b5 {[%emt 0:01:42]} 22. h4 {[%emt 0:12:44]} Bd8 {[%emt 0:01:26]} (22... bxc4 $16 {might work better.} 23. Rxc4 (23. bxc4 Ne7 $16) 23... Ne7) 23. Qh3 {[%emt 0:02:43]} (23. f4 $18) 23... Ra7 {[%emt 0:03:49]} 24. g5 {[%emt 0:01:17]} bxc4 {[%emt 0:04:29]} 25. bxc4 {[%emt 0:00:23]} Qc8 {[%emt 0:00:55]} 26. f4 {[%emt 0:00:48]} exf4 {[%emt 0:03:43]} 27. Bxf4 {[%emt 0:05:03]} Bc7 {[%emt 0:01:17]} 28. Rb1 {[%emt 0:03:31]} Ne7 {[%emt 0:01:26]} 29. h5 {[%emt 0:00:59]} Nb6 {[%emt 0:00:34]} 30. Qxc8 {[%emt 0:01:10]} Rxc8 {[%emt 0:01:16]} 31. Rbc1 {[%emt 0:03:38]} Kg8 {[%emt 0:00:35]} 32. e5 {[%emt 0:01:41]} dxe5 {[%emt 0:00:09]} 33. Bxe5 {[%emt 0:00:48]} Rd8 {[%emt 0:01:07]} 34. Ne4 {[%emt 0:01:14]} Nec8 {[%emt 0:01:32]} 35. Rf4 {[%emt 0:08:58]} Nd7 {[%emt 0:00:30]} 36. Bxc7 {[%emt 0:00:45]} Rxc7 {[%emt 0:00:02]} 37. h6 {[%emt 0:01:58]} Re8 {[%emt 0:00:24]} 38. hxg7 {[%emt 0:01:59]} Kxg7 {[%emt 0:00:01]} 39. Rcf1 {[%emt 0:05:00]} Ne5 {[%emt 0:00:03]} 40. Nf6 {[%emt 0:03:49]} Ree7 {[%emt 0:00:17]} 41. Nh5+ {[%emt 0:01:24]} Kf8 {[%emt 0:01:32]} 42. Nxe5 {[%emt 0:00:19]} Rxe5 {[%emt 0:00:01]} 43. Nf6 {[%emt 0:00:22]} Nd6 {[%emt 0:00:38]} 44. Nxh7+ {[%emt 0:00:29]} Kg7 {[%emt 0:00:04]} 45. Nf6 {[%emt 0:01:04]} Rxg5 {[%emt 0:00:07]} 46. Rh4 {[%emt 0:01:20]} Kg6 {[%emt 0:02:11]} (46... Rb7 $11) 47. Ng8 {[%emt 0:01:04]} Nf5 {[%emt 0:00:17]} 48. d6 {[%emt 0:01:11]} Rd7 $2 {[%emt 0:00:58]} (48... Ng3+ $19 49. Kg2 Nxf1+ 50. Kxf1 Rd7 51. Ne7+ Kf6) 49. Ne7+ {[%emt 0:00:31]} Nxe7 {[%emt 0:00:04]} 50. dxe7 {[%emt 0:00:09]} Rxe7 {[%emt 0:00:02]} 51. Rh8 {[%emt 0:00:51]} Kg7 {[%emt 0:00:14]} 52. Rh4 {[%emt 0:00:21]} Re3 {[%emt 0:00:27]} 53. Rg1 {[%emt 0:00:36]} Rxg1+ {[%emt 0:01:04]} 54. Kxg1 {[%emt 0:00:07]} Rc3 {[%emt 0:00:54]} 55. Re4 {[%emt 0:00:43]} Kf6 {[%emt 0:00:25]} 56. Kf2 $19 {[%emt 0:00:51]} Kf5 {[%emt 0:00:45]} 57. Re7 {[%emt 0:00:27]} f6 {[%emt 0:00:06]} 58. Ra7 {[%emt 0:00:24]} Ra3 {[%emt 0:00:25]} 59. Rd7 {[%emt 0:00:38]} Rxa2+ {[%emt 0:00:28]} 60. Ke3 {[%emt 0:00:06]} Ra3+ {[%emt 0:00:07]} 61. Kd2 {[%emt 0:00:14]} Ra2+ {[%emt 0:00:30]} 62. Kd3 {[%emt 0:00:21]} Ra3+ {[%emt 0:00:08]} 63. Kd2 {[%emt 0:00:07]} Ke4 {[%emt 0:00:23]} 64. Rd5 {[%emt 0:00:21]} Ra5 {[%emt 0:00:57]} 65. Kc3 {[%emt 0:00:21]} f5 {[%emt 0:00:27]} 66. Rd6 {[%emt 0:00:18]} f4 {[%emt 0:00:39]} 67. Rc6 {[%emt 0:00:48]} f3 {[%emt 0:00:16]} 68. Kb2 {[%emt 0:01:28]} Ra4 {[%emt 0:00:42]} 69. Kb3 {[%emt 0:00:25]} Ra1 {[%emt 0:00:09]} 70. Rf6 {[%emt 0:00:14]} Ke3 {[%emt 0:01:13]} 71. Re6+ {[%emt 0:00:14]} Kd3 {[%emt 0:00:17]} 72. Rd6+ {[%emt 0:00:44]} Ke2 {[%emt 0:00:02]} 73. Kb2 {[%emt 0:00:32]} Ra5 {[%emt 0:01:32]} 74. Re6+ {[%emt 0:00:23]} Kf1 {[%emt 0:00:03]} 75. Re4 {[%emt 0:00:41]} f2 {[%emt 0:00:06]} 76. Re8 {[%emt 0:00:21]} Ra4 {[%emt 0:00:11]} 77. Kb3 {[%emt 0:00:09]} Rb4+ {[%emt 0:00:30]} 78. Kc3 {[%emt 0:00:07]} Rb6 {[%emt 0:00:26]} 0-1